[Event "FIDE Women World Rapid 2024"]
[Site "New York"]
[Date "2024.12.27"]
[Round "5.4"]
[White "Munguntuul, Batkhuyag"]
[Black "Kosteniuk, Alexandra"]
[Result "0-1"]
[ECO "B11"]
[WhiteElo "2342"]
[BlackElo "2484"]
[Annotator "ChessBase"]
[PlyCount "112"]
[EventDate "2024.12.14"]
[EventType "swiss"]
[EventCountry "USA"]
[SourceTitle "playchess.com"]
[Source "ChessBase"]
[SourceQuality "1"]
[TimeControl "900+10"]

1. e4 {[%emt 0:00:10]} c6 {[%emt 0:00:02]} 2. Nc3 {[%emt 0:00:00]} d5 {[%emt 0:00:02]} 3. Nf3 {[%emt 0:00:00]} dxe4 {[%emt 0:00:15]} 4. Nxe4 {[%emt 0:00:00]} Nf6 {[%emt 0:00:01]} 5. Qe2 {[%emt 0:00:00]} Bf5 {[%emt 0:00:05]} 6. d3 {[%emt 0:03:43]} e6 {[%emt 0:00:06]} 7. Ng3 {[%emt 0:01:12]} Bg6 {[%emt 0:00:05]} 8. Ne5 {[%emt 0:00:09]} Nbd7 {[%emt 0:00:09]} 9. Nxg6 {[%emt 0:00:04]} hxg6 {[%emt 0:00:01]} 10. Bd2 {[%emt 0:00:25]} Qb6 {[%emt 0:00:45]} 11. O-O-O {[%emt 0:00:53]} Nc5 {[%emt 0:02:27]} 12. c4 {[%emt 0:00:19]} O-O-O {[%emt 0:01:07]} 13. Be3 {[%emt 0:00:50]} Qa5 {[%emt 0:00:47]} 14. Kb1 {[%emt 0:00:12]} e5 {[%emt 0:00:10]} 15. Qc2 {[%emt 0:00:39]} Ne6 {[%emt 0:00:13]} 16. Be2 {[%emt 0:01:28]} Rh4 {[%emt 0:00:10]} 17. Ne4 {[%emt 0:02:23]} Be7 {[%emt 0:03:11]} 18. Ng5 {[%emt 0:02:06]} Nxg5 {[%emt 0:01:07]} 19. Bxg5 {[%emt 0:00:01]} Rhh8 {[%emt 0:00:08]} 20. h4 {[%emt 0:00:30]} Bc5 {[%emt 0:00:05]} 21. Bf3 {[%emt 0:00:09]} Bd4 {[%emt 0:00:13]} 22. g4 {[%emt 0:00:34]} Qb6 {[%emt 0:00:18]} 23. Rd2 {[%emt 0:00:09]} Rde8 {[%emt 0:00:09]} 24. Re2 {[%emt 0:00:38]} Nd7 {[%emt 0:00:16]} 25. h5 {[%emt 0:00:31]} gxh5 {[%emt 0:00:16]} 26. gxh5 {[%emt 0:00:01]} Nc5 {[%emt 0:00:37]} 27. Bg4+ {[%emt 0:00:23]} Kb8 {[%emt 0:00:03]} 28. Rhe1 {[%emt 0:00:22]} f6 {[%emt 0:00:18]} 29. Be3 {[%emt 0:00:18]} Rd8 {[%emt 0:00:05]} 30. Bc1 {[%emt 0:00:33]} a5 {[%emt 0:00:48]} 31. f4 {[%emt 0:00:06]} a4 {[%emt 0:01:01]} 32. fxe5 {[%emt 0:00:02]} Bxe5 {[%emt 0:00:33]} 33. Be3 {[%emt 0:00:44]} a3 {[%emt 0:00:03]} 34. b3 {[%emt 0:00:33]} Qa5 {[%emt 0:00:03]} 35. Bd2 {[%emt 0:00:05]} Qc7 {[%emt 0:00:27]} 36. Bf5 {[%emt 0:00:22]} Qd6 {[%emt 0:00:43]} 37. Bb4 {[%emt 0:00:08]} Rxh5 {[%emt 0:00:33]} 38. d4 {[%emt 0:00:22]} Qxd4 {[%emt 0:00:48]} 39. Rxe5 {[%emt 0:00:01]} fxe5 {[%emt 0:00:02]} 40. Bc3 {[%emt 0:00:00]} Qf4 {[%emt 0:01:01]} 41. Bxe5+ {[%emt 0:00:17]} Qxe5 {[%emt 0:00:01]} 42. Rxe5 {[%emt 0:00:01]} Rh1+ {[%emt 0:00:02]} 43. Qc1 {[%emt 0:00:00]} Rxc1+ {[%emt 0:00:02]} 44. Kxc1 {[%emt 0:00:01]} b6 {[%emt 0:00:39]} 45. Re7 {[%emt 0:00:11]} Rf8 {[%emt 0:00:22]} 46. Bh3 {[%emt 0:00:11]} Rf2 {[%emt 0:00:26]} 47. Rxg7 {[%emt 0:00:07]} Rxa2 {[%emt 0:00:30]} 48. Rg2 {[%emt 0:00:39]} Nxb3+ {[%emt 0:00:14]} 49. Kb1 {[%emt 0:00:01]} Ra1+ {[%emt 0:00:14]} 50. Kc2 {[%emt 0:00:01]} Nd4+ {[%emt 0:00:13]} 51. Kc3 {[%emt 0:00:01]} c5 {[%emt 0:00:00]} 52. Bg4 {[%emt 0:00:09]} Rc1+ {[%emt 0:00:13]} 53. Kd3 {[%emt 0:00:02]} Nc6 {[%emt 0:00:13]} 54. Be6 {[%emt 0:00:05]} Nb4+ {[%emt 0:00:14]} 55. Ke4 {[%emt 0:00:05]} Re1+ {[%emt 0:00:05]} 56. Kf5 {[%emt 0:00:02]} a2 {[%emt 0:00:30]} 0-1

[Event "FIDE Women World Rapid 2024"]
[Site "New York"]
[Date "2024.12.27"]
[Round "5.4"]
[White "Mou, Iris"]
[Black "Sahithi Varshini M"]
[Result "1-0"]
[ECO "B20"]
[WhiteElo "2226"]
[BlackElo "2309"]
[Annotator "ChessBase"]
[PlyCount "109"]
[EventDate "2024.12.14"]
[EventType "swiss"]
[EventCountry "USA"]
[SourceTitle "playchess.com"]
[Source "ChessBase"]
[SourceQuality "1"]
[TimeControl "900+10"]

1. e4 {[%emt 0:00:42]} c5 {[%emt 0:00:08]} 2. g3 {[%emt 0:00:02]} Nc6 {[%emt 0:00:21]} 3. Bg2 {[%emt 0:00:04]} e6 {[%emt 0:01:44]} 4. Ne2 {[%emt 0:00:15]} Nge7 {[%emt 0:00:43]} 5. O-O {[%emt 0:00:44]} d5 {[%emt 0:00:18]} 6. exd5 {[%emt 0:01:06]} Nxd5 {[%emt 0:00:25]} 7. d4 {[%emt 0:00:15]} Nb6 {[%emt 0:02:53]} 8. dxc5 {[%emt 0:02:54]} Bxc5 {[%emt 0:00:48]} 9. Qxd8+ {[%emt 0:00:29]} Nxd8 {[%emt 0:00:02]} 10. Nbc3 {[%emt 0:00:39]} Bd7 {[%emt 0:00:42]} 11. Ne4 {[%emt 0:00:19]} Be7 {[%emt 0:00:42]} 12. Bf4 {[%emt 0:00:40]} Rc8 {[%emt 0:01:24]} 13. Rac1 {[%emt 0:00:56]} f6 {[%emt 0:00:32]} 14. N2c3 {[%emt 0:01:37]} Bc6 {[%emt 0:01:01]} 15. Rfd1 {[%emt 0:01:01]} e5 {[%emt 0:00:59]} 16. Be3 {[%emt 0:01:19]} Nc4 {[%emt 0:00:59]} 17. Nd5 {[%emt 0:00:33]} Nxe3 {[%emt 0:01:06]} 18. Nxe3 {[%emt 0:00:37]} g6 {[%emt 0:00:27]} 19. Nd5 {[%emt 0:01:03]} Bxd5 {[%emt 0:01:03]} 20. Rxd5 {[%emt 0:00:04]} Nc6 {[%emt 0:00:03]} 21. c3 {[%emt 0:01:04]} f5 {[%emt 0:01:04]} 22. Nd2 {[%emt 0:01:16]} e4 {[%emt 0:01:02]} 23. Nc4 {[%emt 0:00:35]} O-O {[%emt 0:00:14]} 24. Rcd1 {[%emt 0:00:24]} Nb4 {[%emt 0:00:16]} 25. Rd7 {[%emt 0:00:19]} Rxc4 {[%emt 0:00:11]} 26. Rxe7 {[%emt 0:00:02]} Nc6 {[%emt 0:00:08]} 27. Rxb7 {[%emt 0:00:03]} Rf7 {[%emt 0:00:08]} 28. Rxf7 {[%emt 0:00:15]} Kxf7 {[%emt 0:00:04]} 29. Rd7+ {[%emt 0:00:15]} Kf6 {[%emt 0:00:15]} 30. Bf1 {[%emt 0:00:13]} Rc5 {[%emt 0:00:07]} 31. Rc7 {[%emt 0:00:07]} h5 {[%emt 0:00:15]} 32. a4 {[%emt 0:00:18]} Ke5 {[%emt 0:00:09]} 33. Bb5 {[%emt 0:00:11]} Kd6 {[%emt 0:00:04]} 34. Rxc6+ {[%emt 0:00:11]} Rxc6 {[%emt 0:00:03]} 35. Bxc6 {[%emt 0:00:01]} Kxc6 {[%emt 0:00:00]} 36. h4 {[%emt 0:00:16]} Kd5 {[%emt 0:00:02]} 37. b3 {[%emt 0:00:04]} Ke5 {[%emt 0:00:33]} 38. a5 {[%emt 0:00:15]} Kd5 {[%emt 0:00:01]} 39. Kf1 {[%emt 0:00:05]} Kc5 {[%emt 0:00:02]} 40. Ke2 {[%emt 0:00:03]} Kb5 {[%emt 0:00:03]} 41. b4 {[%emt 0:00:02]} Kc4 {[%emt 0:00:21]} 42. Kd2 {[%emt 0:00:07]} Kb5 {[%emt 0:00:06]} 43. Ke3 {[%emt 0:00:09]} Kc4 {[%emt 0:00:04]} 44. Kf4 {[%emt 0:00:02]} a6 {[%emt 0:00:04]} 45. Kg5 {[%emt 0:00:05]} Kd3 {[%emt 0:00:42]} 46. b5 {[%emt 0:00:01]} Ke2 {[%emt 0:00:02]} 47. bxa6 {[%emt 0:00:09]} Kxf2 {[%emt 0:00:02]} 48. a7 {[%emt 0:00:01]} e3 {[%emt 0:00:02]} 49. a8=Q {[%emt 0:00:02]} e2 {[%emt 0:00:02]} 50. Qa7+ {[%emt 0:00:05]} Kf1 {[%emt 0:00:15]} 51. Qe3 {[%emt 0:00:04]} e1=Q {[%emt 0:00:36]} 52. Qxe1+ {[%emt 0:00:02]} Kxe1 {[%emt 0:00:02]} 53. a6 {[%emt 0:00:02]} Kf2 {[%emt 0:00:09]} 54. Kf4 {[%emt 0:00:02]} Kg2 {[%emt 0:00:12]} 55. a7 {[%emt 0:00:02]} 1-0

[Event "FIDE Women World Rapid 2024"]
[Site "New York"]
[Date "2024.12.27"]
[Round "5.5"]
[White "Maltsevskaya, Aleksandra"]
[Black "Assaubayeva, Bibisara"]
[Result "1/2-1/2"]
[ECO "B51"]
[WhiteElo "2368"]
[BlackElo "2492"]
[Annotator "ChessBase"]
[PlyCount "55"]
[EventDate "2024.12.14"]
[EventType "swiss"]
[EventCountry "USA"]
[SourceTitle "playchess.com"]
[Source "ChessBase"]
[SourceQuality "1"]
[TimeControl "900+10"]

1. e4 {[%emt 0:00:02]} c5 {[%emt 0:00:01]} 2. Nf3 {[%emt 0:00:02]} d6 {[%emt 0:00:01]} 3. Bb5+ {[%emt 0:00:02]} Nd7 {[%emt 0:00:04]} 4. d4 {[%emt 0:00:27]} cxd4 {[%emt 0:00:02]} 5. Nxd4 {[%emt 0:00:02]} Ngf6 {[%emt 0:00:04]} 6. O-O {[%emt 0:00:06]} a6 {[%emt 0:00:02]} 7. Bd3 {[%emt 0:00:02]} Nc5 {[%emt 0:00:16]} 8. Re1 {[%emt 0:00:09]} e5 {[%emt 0:01:34]} 9. Nf3 {[%emt 0:00:01]} b5 {[%emt 0:01:20]} 10. b4 {[%emt 0:00:02]} Nxd3 {[%emt 0:00:35]} 11. Qxd3 {[%emt 0:00:02]} h6 {[%emt 0:00:31]} 12. a4 {[%emt 0:00:27]} bxa4 {[%emt 0:01:54]} 13. Rxa4 {[%emt 0:00:02]} Rb8 {[%emt 0:00:15]} 14. c4 {[%emt 0:01:16]} Be7 {[%emt 0:00:21]} 15. Nc3 {[%emt 0:00:03]} O-O {[%emt 0:00:20]} 16. Be3 {[%emt 0:00:37]} Bb7 {[%emt 0:02:06]} 17. h3 {[%emt 0:01:21]} Qd7 {[%emt 0:00:19]} 18. Rea1 {[%emt 0:00:16]} Bc6 {[%emt 0:01:19]} 19. Rxa6 {[%emt 0:00:44]} Rxb4 {[%emt 0:00:02]} 20. Ra7 {[%emt 0:01:08]} Rb7 {[%emt 0:00:15]} 21. Rxb7 {[%emt 0:00:23]} Bxb7 {[%emt 0:00:01]} 22. Ra7 {[%emt 0:00:25]} Ra8 {[%emt 0:00:13]} 23. Nxe5 {[%emt 0:00:43]} Qc8 {[%emt 0:00:01]} 24. Rxa8 {[%emt 0:05:50]} Qxa8 {[%emt 0:00:11]} 25. Ng4 {[%emt 0:00:02]} Nxe4 {[%emt 0:01:10]} 26. Nd5 {[%emt 0:00:01]} Bxd5 {[%emt 0:00:32]} 27. cxd5 {[%emt 0:00:02]} Nf6 {[%emt 0:03:34]} 28. Nxf6+ {[%emt 0:00:04]} 1/2-1/2

[Event "FIDE Women World Rapid 2024"]
[Site "New York"]
[Date "2024.12.27"]
[Round "5.5"]
[White "Sargsyan, Anna M."]
[Black "Melia, Salome"]
[Result "1-0"]
[ECO "A06"]
[WhiteElo "2361"]
[BlackElo "2293"]
[Annotator "ChessBase"]
[PlyCount "59"]
[EventDate "2024.12.14"]
[EventType "swiss"]
[EventCountry "USA"]
[SourceTitle "playchess.com"]
[Source "ChessBase"]
[SourceQuality "1"]
[TimeControl "900+10"]

1. Nf3 {[%emt 0:00:08]} d5 {[%emt 0:00:02]} 2. e3 {[%emt 0:00:18]} g6 {[%emt 0:00:31]} 3. c4 {[%emt 0:00:08]} e6 {[%emt 0:00:07]} 4. d4 {[%emt 0:00:19]} Bg7 {[%emt 0:00:05]} 5. Nc3 {[%emt 0:00:01]} Ne7 {[%emt 0:00:04]} 6. Bd2 {[%emt 0:00:13]} O-O {[%emt 0:00:04]} 7. Rc1 {[%emt 0:00:01]} Nbc6 {[%emt 0:00:23]} 8. h4 {[%emt 0:00:42]} h6 {[%emt 0:00:20]} 9. h5 {[%emt 0:00:03]} g5 {[%emt 0:00:13]} 10. a3 {[%emt 0:00:22]} a6 {[%emt 0:00:02]} 11. b4 {[%emt 0:00:02]} e5 {[%emt 0:06:36]} 12. dxe5 {[%emt 0:01:50]} Nxe5 {[%emt 0:00:24]} 13. cxd5 {[%emt 0:00:07]} Nxd5 {[%emt 0:00:09]} 14. Nd4 {[%emt 0:00:22]} Re8 {[%emt 0:02:04]} 15. Be2 {[%emt 0:01:05]} Nf4 {[%emt 0:01:43]} 16. O-O {[%emt 0:00:45]} Nxe2+ {[%emt 0:00:24]} 17. Ncxe2 {[%emt 0:00:27]} Bg4 {[%emt 0:00:31]} 18. Bc3 {[%emt 0:00:31]} Bxh5 {[%emt 0:00:24]} 19. Qb3 {[%emt 0:00:08]} Qd7 {[%emt 0:01:02]} 20. Ng3 {[%emt 0:00:48]} Bg4 {[%emt 0:00:58]} 21. Qc2 {[%emt 0:00:38]} Nc4 {[%emt 0:00:13]} 22. a4 {[%emt 0:01:09]} b5 {[%emt 0:01:04]} 23. axb5 {[%emt 0:01:09]} Na3 {[%emt 0:00:33]} 24. Qb2 {[%emt 0:01:02]} axb5 {[%emt 0:00:02]} 25. Nxb5 {[%emt 0:00:47]} Bxc3 {[%emt 0:00:11]} 26. Nxc3 {[%emt 0:00:07]} Nc4 {[%emt 0:00:03]} 27. Qc2 {[%emt 0:00:13]} Rad8 {[%emt 0:00:56]} 28. Nce4 {[%emt 0:00:08]} Qe6 {[%emt 0:00:29]} 29. Qxc4 {[%emt 0:00:06]} f5 {[%emt 0:00:11]} 30. Nf6+ {[%emt 0:00:03]} 1-0

[Event "FIDE Women World Rapid 2024"]
[Site "New York"]
[Date "2024.12.27"]
[Round "5.6"]
[White "Lagno, Kateryna"]
[Black "Shuvalova, Polina"]
[Result "1-0"]
[ECO "B23"]
[WhiteElo "2515"]
[BlackElo "2504"]
[Annotator "ChessBase"]
[PlyCount "118"]
[EventDate "2024.12.14"]
[EventType "swiss"]
[EventCountry "USA"]
[SourceTitle "playchess.com"]
[Source "ChessBase"]
[SourceQuality "1"]
[TimeControl "900+10"]

1. e4 {[%emt 0:00:01]} c5 {[%emt 0:00:01]} 2. Nc3 {[%emt 0:00:02]} d6 {[%emt 0:00:35]} 3. Bb5+ {[%emt 0:00:11]} Bd7 {[%emt 0:00:05]} 4. Bxd7+ {[%emt 0:00:05]} Qxd7 {[%emt 0:00:10]} 5. d4 {[%emt 0:00:07]} cxd4 {[%emt 0:00:02]} 6. Qxd4 {[%emt 0:00:02]} Nc6 {[%emt 0:00:01]} 7. Qd3 {[%emt 0:00:06]} g6 {[%emt 0:00:07]} 8. Nf3 {[%emt 0:00:09]} Bg7 {[%emt 0:00:02]} 9. O-O {[%emt 0:00:11]} Nf6 {[%emt 0:00:42]} 10. Nd5 {[%emt 0:00:07]} O-O {[%emt 0:00:10]} 11. Bg5 {[%emt 0:00:19]} Ne8 {[%emt 0:02:35]} 12. c3 {[%emt 0:00:26]} Nc7 {[%emt 0:00:10]} 13. Rad1 {[%emt 0:00:37]} Ne6 {[%emt 0:00:31]} 14. Bh4 {[%emt 0:01:25]} Rfe8 {[%emt 0:00:25]} 15. Rfe1 {[%emt 0:00:24]} Kf8 {[%emt 0:01:12]} 16. Qe3 {[%emt 0:02:17]} Qc8 {[%emt 0:00:50]} 17. Bg3 {[%emt 0:01:39]} b5 {[%emt 0:00:47]} 18. h4 {[%emt 0:03:01]} h5 {[%emt 0:00:51]} 19. Rd3 {[%emt 0:01:10]} Rb8 {[%emt 0:01:09]} 20. e5 {[%emt 0:00:49]} dxe5 {[%emt 0:00:13]} 21. Nxe5 {[%emt 0:00:01]} Nxe5 {[%emt 0:00:08]} 22. Bxe5 {[%emt 0:00:02]} Rb7 {[%emt 0:00:20]} 23. Bxg7+ {[%emt 0:00:25]} Kxg7 {[%emt 0:00:05]} 24. Qe5+ {[%emt 0:00:02]} Kg8 {[%emt 0:00:27]} 25. Rg3 {[%emt 0:00:31]} Ng7 {[%emt 0:00:42]} 26. Nf4 {[%emt 0:02:18]} Qf5 {[%emt 0:01:48]} 27. Rge3 {[%emt 0:01:01]} Qxe5 {[%emt 0:00:00]} 28. Rxe5 {[%emt 0:00:01]} e6 {[%emt 0:00:00]} 29. a3 {[%emt 0:00:48]} Rd8 {[%emt 0:00:00]} 30. g3 {[%emt 0:00:02]} Nf5 {[%emt 0:00:00]} 31. Ng2 {[%emt 0:00:37]} Rd2 {[%emt 0:01:07]} 32. R5e2 {[%emt 0:00:01]} Rbd7 {[%emt 0:00:05]} 33. Kf1 {[%emt 0:00:05]} R2d6 {[%emt 0:00:56]} 34. Ne3 {[%emt 0:00:04]} Ne7 {[%emt 0:00:13]} 35. Rc1 {[%emt 0:00:35]} Nc6 {[%emt 0:00:05]} 36. Ree1 {[%emt 0:00:09]} a5 {[%emt 0:00:04]} 37. Red1 {[%emt 0:00:05]} Ne5 {[%emt 0:00:34]} 38. Ke2 {[%emt 0:01:01]} Kg7 {[%emt 0:00:34]} 39. Rxd6 {[%emt 0:00:08]} Rxd6 {[%emt 0:00:01]} 40. b3 {[%emt 0:00:12]} Nd7 {[%emt 0:00:36]} 41. b4 {[%emt 0:00:09]} axb4 {[%emt 0:00:18]} 42. cxb4 {[%emt 0:00:01]} Ra6 {[%emt 0:00:14]} 43. Rc3 {[%emt 0:00:01]} e5 {[%emt 0:00:02]} 44. Nd5 {[%emt 0:00:10]} Ra7 {[%emt 0:00:42]} 45. Rc7 {[%emt 0:00:07]} Rxc7 {[%emt 0:00:22]} 46. Nxc7 {[%emt 0:00:01]} Nb6 {[%emt 0:00:04]} 47. Nxb5 {[%emt 0:00:02]} Kf6 {[%emt 0:00:05]} 48. Nc3 {[%emt 0:00:01]} Ke6 {[%emt 0:00:04]} 49. a4 {[%emt 0:00:01]} f5 {[%emt 0:00:12]} 50. a5 {[%emt 0:00:02]} Nc4 {[%emt 0:00:10]} 51. a6 {[%emt 0:00:15]} Kd6 {[%emt 0:00:07]} 52. a7 {[%emt 0:00:11]} Nb6 {[%emt 0:00:01]} 53. Na4 {[%emt 0:00:03]} Na8 {[%emt 0:00:05]} 54. b5 {[%emt 0:00:31]} Kc7 {[%emt 0:00:04]} 55. b6+ {[%emt 0:00:01]} Kc6 {[%emt 0:00:24]} 56. Kd3 {[%emt 0:00:02]} Kb7 {[%emt 0:00:02]} 57. Kc3 {[%emt 0:00:05]} Kc6 {[%emt 0:02:11]} 58. Kc4 {[%emt 0:00:01]} f4 {[%emt 0:00:34]} 59. Kd3 {[%emt 0:00:02]} Kd5 {[%emt 0:00:09]} 1-0

[Event "FIDE Women World Rapid 2024"]
[Site "New York"]
[Date "2024.12.27"]
[Round "5.6"]
[White "Bodnaruk, Anastasia"]
[Black "Belenkaya, Dina"]
[Result "1-0"]
[ECO "B12"]
[WhiteElo "2333"]
[BlackElo "2155"]
[Annotator "ChessBase"]
[PlyCount "91"]
[EventDate "2024.12.14"]
[EventType "swiss"]
[EventCountry "USA"]
[SourceTitle "playchess.com"]
[Source "ChessBase"]
[SourceQuality "1"]
[TimeControl "900+10"]

1. e4 {[%emt 0:00:01]} c6 {[%emt 0:00:44]} 2. d4 {[%emt 0:00:02]} d5 {[%emt 0:00:02]} 3. e5 {[%emt 0:00:01]} g6 {[%emt 0:00:01]} 4. Bd3 {[%emt 0:00:42]} Bg7 {[%emt 0:00:30]} 5. Ne2 {[%emt 0:00:17]} c5 {[%emt 0:00:08]} 6. c3 {[%emt 0:00:05]} Nc6 {[%emt 0:00:03]} 7. O-O {[%emt 0:00:24]} Nh6 {[%emt 0:00:44]} 8. Bxh6 {[%emt 0:02:37]} Bxh6 {[%emt 0:00:02]} 9. f4 {[%emt 0:00:04]} cxd4 {[%emt 0:00:42]} 10. cxd4 {[%emt 0:01:51]} Qb6 {[%emt 0:00:13]} 11. Nbc3 {[%emt 0:00:02]} Be6 {[%emt 0:02:25]} 12. Na4 {[%emt 0:00:37]} Qa5 {[%emt 0:00:40]} 13. h3 {[%emt 0:01:47]} Bf5 {[%emt 0:01:41]} 14. Bxf5 {[%emt 0:00:10]} gxf5 {[%emt 0:00:02]} 15. a3 {[%emt 0:00:55]} Rg8 {[%emt 0:01:19]} 16. b4 {[%emt 0:00:23]} Qd8 {[%emt 0:00:29]} 17. Nc5 {[%emt 0:01:22]} b6 {[%emt 0:00:09]} 18. Nb3 {[%emt 0:00:16]} Qd7 {[%emt 0:00:55]} 19. Qd3 {[%emt 0:00:12]} Nd8 {[%emt 0:00:46]} 20. Rac1 {[%emt 0:00:45]} Rg6 {[%emt 0:00:09]} 21. Kh2 {[%emt 0:01:08]} f6 {[%emt 0:00:35]} 22. Ng3 {[%emt 0:00:38]} fxe5 {[%emt 0:00:37]} 23. dxe5 {[%emt 0:00:03]} e6 {[%emt 0:00:06]} 24. Nd4 {[%emt 0:00:24]} Rc8 {[%emt 0:00:11]} 25. Nh5 {[%emt 0:00:37]} Kf8 {[%emt 0:01:43]} 26. g3 {[%emt 0:00:16]} Bg7 {[%emt 0:00:10]} 27. Qb5 {[%emt 0:00:32]} Qb7 {[%emt 0:00:51]} 28. Qd3 {[%emt 0:00:27]} Rh6 {[%emt 0:00:42]} 29. g4 {[%emt 0:00:25]} fxg4 {[%emt 0:00:06]} 30. hxg4 {[%emt 0:00:01]} Kg8 {[%emt 0:00:30]} 31. Kg3 {[%emt 0:00:09]} Rc7 {[%emt 0:00:51]} 32. Qb5 {[%emt 0:00:23]} Kf8 {[%emt 0:00:42]} 33. Rh1 {[%emt 0:00:33]} a6 {[%emt 0:00:11]} 34. Qd3 {[%emt 0:00:06]} Rc4 {[%emt 0:00:30]} 35. Nf3 {[%emt 0:00:49]} Qc7 {[%emt 0:00:41]} 36. Rxc4 {[%emt 0:00:19]} dxc4 {[%emt 0:00:17]} 37. Qe4 {[%emt 0:00:25]} Nf7 {[%emt 0:00:32]} 38. Rd1 {[%emt 0:00:12]} c3 {[%emt 0:00:14]} 39. Qa8+ {[%emt 0:00:15]} Ke7 {[%emt 0:00:04]} 40. Nxg7 {[%emt 0:00:08]} Nd8 {[%emt 0:00:02]} 41. Qe4 {[%emt 0:00:27]} Rg6 {[%emt 0:00:13]} 42. Nh5 {[%emt 0:00:11]} Nf7 {[%emt 0:00:04]} 43. Nf6 {[%emt 0:00:14]} Kf8 {[%emt 0:00:23]} 44. Qa8+ {[%emt 0:00:06]} Kg7 {[%emt 0:00:02]} 45. Qg8+ {[%emt 0:00:05]} Kh6 {[%emt 0:00:01]} 46. Rh1# {[%emt 0:00:01]} 1-0

[Event "FIDE Women World Rapid 2024"]
[Site "New York"]
[Date "2024.12.27"]
[Round "5.7"]
[White "Muzychuk, Anna"]
[Black "Garifullina, Leya"]
[Result "1/2-1/2"]
[ECO "B52"]
[WhiteElo "2515"]
[BlackElo "2451"]
[Annotator "ChessBase"]
[PlyCount "49"]
[EventDate "2024.12.14"]
[EventType "swiss"]
[EventCountry "USA"]
[SourceTitle "playchess.com"]
[Source "ChessBase"]
[SourceQuality "1"]
[TimeControl "900+10"]

1. e4 {[%emt 0:00:02]} c5 {[%emt 0:00:01]} 2. Nf3 {[%emt 0:00:02]} d6 {[%emt 0:00:01]} 3. Bb5+ {[%emt 0:00:01]} Bd7 {[%emt 0:00:02]} 4. Bxd7+ {[%emt 0:00:04]} Qxd7 {[%emt 0:00:02]} 5. c4 {[%emt 0:00:09]} Nf6 {[%emt 0:00:03]} 6. Nc3 {[%emt 0:00:01]} g6 {[%emt 0:00:02]} 7. d4 {[%emt 0:00:08]} cxd4 {[%emt 0:00:02]} 8. Nxd4 {[%emt 0:00:02]} Bg7 {[%emt 0:00:02]} 9. f3 {[%emt 0:00:10]} O-O {[%emt 0:00:41]} 10. Be3 {[%emt 0:00:06]} Qc7 {[%emt 0:02:53]} 11. b3 {[%emt 0:00:40]} a6 {[%emt 0:01:10]} 12. O-O {[%emt 0:01:07]} e6 {[%emt 0:00:13]} 13. Rc1 {[%emt 0:00:16]} Nc6 {[%emt 0:01:24]} 14. Qd2 {[%emt 0:00:45]} Nxd4 {[%emt 0:00:43]} 15. Bxd4 {[%emt 0:00:04]} Qa5 {[%emt 0:00:37]} 16. Rfd1 {[%emt 0:03:11]} Rfd8 {[%emt 0:01:10]} 17. Qf2 {[%emt 0:01:37]} Nd7 {[%emt 0:02:31]} 18. Bxg7 {[%emt 0:00:47]} Kxg7 {[%emt 0:00:02]} 19. f4 {[%emt 0:04:15]} Nf6 {[%emt 0:00:15]} 20. h3 {[%emt 0:01:50]} b5 {[%emt 0:00:29]} 21. e5 {[%emt 0:00:25]} dxe5 {[%emt 0:00:02]} 22. fxe5 {[%emt 0:00:02]} Rxd1+ {[%emt 0:00:04]} 23. Rxd1 {[%emt 0:00:24]} Qxc3 {[%emt 0:00:31]} 24. Qxf6+ {[%emt 0:00:07]} Kg8 {[%emt 0:00:02]} 25. Rd8+ {[%emt 0:02:19]} 1/2-1/2